bitfinex-derivatives/quotes_BTCF0:USTF0_20250827
["timestamp","ask_amount","ask_price","bid_price","bid_amount"]
[1756286403668,1.25273713,111050.0,111040.0,0.9677894]
[1756286404765,1.25273713,111050.0,111040.0,0.6167321]
[1756286404962,1.25273713,111050.0,111040.0,0.9677894]
[1756286405766,1.25273713,111050.0,111040.0,0.6167321]
[1756286405967,1.61353713,111050.0,111040.0,0.13174]
[1756286406178,1.96459443,111050.0,111040.0,0.13174]
[1756286406378,1.96459443,111050.0,111040.0,0.2559319]
[1756286406673,1.96635443,111050.0,111040.0,0.2559319]
[1756286406973,1.96635443,111050.0,111040.0,0.16588]
[1756286407579,1.96635443,111050.0,111040.0,0.2559319]
[1756286407777,0.75161713,111050.0,111040.0,0.2559319]
[1756286408277,1.25413713,111050.0,111040.0,0.6069892]
[1756286412183,0.39081713,111050.0,111040.0,0.6069892]
[1756286412379,1.25369713,111050.0,111040.0,0.6069892]
[1756286413376,1.96555443,111050.0,111040.0,0.05447]
[1756286414582,1.61449713,111050.0,111040.0,0.05447]
[1756286414784,0.0900519,111040.0,111030.0,0.54343644]
[1756286415083,0.5761992,111040.0,111030.0,0.13647]
[1756286415286,0.5761992,111040.0,111030.0,0.14651]
[1756286415585,0.5761992,111040.0,111030.0,0.16979]
[1756286415886,0.2750419,111040.0,111030.0,0.25985]
[1756286416085,0.2750419,111040.0,111030.0,0.16979]
[1756286416487,0.4246419,111040.0,111030.0,0.16979]
[1756286416890,0.2750419,111040.0,111030.0,0.16979]
[1756286417290,0.6250419,111040.0,111030.0,0.16979]
[1756286417483,1.3168992,111040.0,111030.0,0.07807]
[1756286417681,1.3168992,111040.0,111030.0,0.02923]
[1756286417988,0.22515,111030.0,111020.0,0.9717096]
[1756286418284,1.08787,111030.0,111020.0,0.6206523]
[1756286418486,0.22515,111030.0,111020.0,0.2598523]
[1756286418786,1.08831,111030.0,111020.0,0.6109096]
[1756286419383,1.08831,111030.0,111020.0,0.6119096]
[1756286419583,1.08831,111030.0,111020.0,0.6129096]
[1756286419783,1.06754,111030.0,111020.0,0.6129096]
[1756286420299,0.11444,111030.0,111020.0,0.9737096]
[1756286420503,0.2045,111030.0,111020.0,0.9737096]
[1756286424396,0.5653,111030.0,111020.0,0.5228473]
[1756286424600,0.5653,111030.0,111020.0,0.6129154]
[1756286425104,0.2045,111030.0,111020.0,0.6129154]
[1756286425590,0.2045,111030.0,111020.0,0.2618581]
[1756286425897,0.09006,111030.0,111020.0,0.6226581]
[1756286426097,0.17087,111030.0,111020.0,0.9737154]
[1756286426404,0.18633,111030.0,111020.0,0.9737154]
[1756286430304,0.2045,111030.0,111020.0,0.9737154]
[1756286432299,1.0810427,111040.0,111030.0,0.25985]
[1756286432602,1.1156327,111040.0,111030.0,0.6109073]
[1756286433194,0.93258,111040.0,111030.0,0.6109073]
[1756286434107,0.96717,111040.0,111030.0,0.6109073]
[1756286434605,0.96717,111040.0,111030.0,0.9717073]
[1756286435106,0.10597,111040.0,111030.0,0.9717073]
[1756286435304,0.0499,111040.0,111030.0,0.9717073]
[1756286436908,0.0499,111040.0,111030.0,0.62065]
[1756286437115,0.0499,111040.0,111030.0,0.9717073]
[1756286438206,0.0499,111040.0,111030.0,1.2217073]
[1756286438907,0.0499,111040.0,111030.0,2.0823473]
[1756286439208,0.00937,111040.0,111030.0,2.0823473]
[1756286440508,0.04515648,111050.0,111040.0,0.2576319]
[1756286440809,3.1866906,111070.0,111060.0,0.2576157]
[1756286441001,4.6866906,111070.0,111060.0,0.608673]
[1756286441202,4.72278369,111070.0,111060.0,0.608673]
[1756286443507,4.72278369,111070.0,111060.0,0.2576157]
[1756286443712,4.79632994,111070.0,111060.0,0.608673]
[1756286443910,4.79832994,111070.0,111060.0,0.608673]
[1756286445011,5.04832994,111070.0,111060.0,0.608673]
[1756286445200,5.04832994,111070.0,111060.0,0.2576157]
[1756286445400,5.04832994,111070.0,111060.0,0.608673]
[1756286445609,4.79832994,111070.0,111060.0,0.2576157]
[1756286446012,3.29832994,111070.0,111060.0,0.2576157]
[1756286446712,3.29832994,111070.0,111060.0,0.608673]
[1756286447414,3.29832994,111070.0,111060.0,0.2576157]
[1756286447614,4.79832994,111070.0,111060.0,0.2576157]
[1756286447913,4.79832994,111070.0,111060.0,0.608673]
[1756286448114,4.79832994,111070.0,111060.0,0.2576157]
[1756286448414,4.79832994,111070.0,111060.0,0.608673]
[1756286450720,4.79632994,111070.0,111060.0,0.2576157]
[1756286450912,4.79732994,111070.0,111060.0,0.608673]
[1756286451107,3.08428994,111070.0,111060.0,0.1849557]
[1756286451313,3.08428994,111070.0,111060.0,0.608673]
[1756286451718,3.23388994,111070.0,111060.0,0.4797973]
[1756286451905,3.43434724,111070.0,111060.0,0.3790573]
[1756286452111,3.43434724,111070.0,111060.0,0.469093]
[1756286452317,3.08328994,111070.0,111060.0,0.494133]
[1756286452618,1.58328994,111070.0,111060.0,0.608673]
[1756286453019,0.72176994,111070.0,111060.0,0.608673]
[1756286453213,1.58156994,111070.0,111060.0,0.608673]
[1756286454016,1.58156994,111070.0,111060.0,0.16758]
[1756286454219,1.58156994,111070.0,111060.0,0.5186373]
[1756286454612,1.58156994,111070.0,111060.0,0.608673]
[1756286454818,1.58256994,111070.0,111060.0,0.608673]
[1756286456620,1.58256994,111070.0,111060.0,0.16758]
[1756286456822,1.58256994,111070.0,111060.0,0.5186373]
[1756286457414,1.58256994,111070.0,111060.0,0.09492]
[1756286457619,1.58256994,111070.0,111060.0,0.4459773]
[1756286457819,1.58256994,111070.0,111060.0,0.4797973]
[1756286458716,1.58256994,111070.0,111060.0,0.12874]
[1756286458925,1.58256994,111070.0,111060.0,0.4797973]
[1756286459423,1.84541709,111070.0,111060.0,0.39158715]
[1756286460022,1.58256994,111070.0,111060.0,0.39158715]
[1756286460216,1.84541709,111070.0,111060.0,0.39158715]
[1756286460620,1.84541709,111070.0,111060.0,0.028]
[1756286460928,0.2593157,111060.0,111050.0,0.2576165]
[1756286462123,0.52216285,111060.0,111050.0,0.52046365]
[1756286462327,0.52216285,111060.0,111050.0,0.2576165]
[1756286462525,0.52216285,111060.0,111050.0,0.52046365]
[1756286462917,0.52216285,111060.0,111050.0,0.2576165]
[1756286463127,0.52216285,111060.0,111050.0,0.52046365]
[1756286463823,0.2593157,111060.0,111050.0,0.52046365]
[1756286464629,0.2593157,111060.0,111050.0,0.2576165]
[1756286464830,0.2593157,111060.0,111050.0,0.52046365]
[1756286465027,0.88296285,111060.0,111050.0,0.35776715]
[1756286465226,0.88296285,111060.0,111050.0,0.43042715]
[1756286465427,1.74184285,111060.0,111050.0,0.43042715]
[1756286465925,1.74184285,111060.0,111050.0,0.43046715]
[1756286466127,1.74184285,111060.0,111050.0,0.35780715]
[1756286466429,1.74324285,111060.0,111050.0,0.42824715]
[1756286466625,1.74324285,111060.0,111050.0,0.1654]
[1756286467128,3.24324285,111060.0,111050.0,0.42824715]
[1756286468832,3.50609,111060.0,111050.0,0.29088715]
[1756286469129,2.38436285,111060.0,111050.0,0.05288]
[1756286469331,3.24380285,111060.0,111050.0,0.33694715]
[1756286470132,3.24380285,111060.0,111050.0,0.37057715]
[1756286470321,3.24380285,111060.0,111050.0,0.33694715]
[1756286471832,3.24380285,111060.0,111050.0,0.37057715]
[1756286472033,3.24380285,111060.0,111050.0,0.12684]
[1756286472234,3.24380285,111060.0,111050.0,0.05288]
[1756286472534,3.24380285,111060.0,111050.0,0.31572715]
[1756286473331,3.24240285,111060.0,111050.0,0.05288]
[1756286473529,3.24240285,111060.0,111050.0,0.31572715]
[1756286473530,3.29230285,111060.0,111050.0,0.31572715]
[1756286474637,3.55515,111060.0,111050.0,0.31572715]
[1756286475144,3.29230285,111060.0,111050.0,0.42649715]
[1756286475728,2.43286285,111060.0,111050.0,0.42649715]
[1756286475924,3.29174285,111060.0,111050.0,0.42649715]
[1756286476333,2.1700157,111060.0,111050.0,0.42649715]
[1756286476535,3.44114285,111060.0,111050.0,0.42649715]
[1756286476737,3.44114285,111060.0,111050.0,0.51654095]
[1756286477837,2.3196157,111060.0,111050.0,0.51654095]
[1756286478031,3.44114285,111060.0,111050.0,0.51654095]
[1756286479036,2.58246285,111060.0,111050.0,0.42649715]
[1756286479237,3.44078285,111060.0,111050.0,0.42649715]
[1756286479937,3.44050285,111060.0,111050.0,0.42649715]
[1756286480339,3.44050285,111060.0,111050.0,0.38968715]
[1756286480938,3.44050285,111060.0,111050.0,0.42649715]
[1756286482040,1.94050285,111060.0,111050.0,0.42649715]
[1756286482242,1.6776557,111060.0,111050.0,0.42649715]
[1756286482535,3.44050285,111060.0,111050.0,0.42649715]
[1756286482741,3.1776557,111060.0,111050.0,0.42649715]
[1756286483041,1.6780157,111060.0,111050.0,0.51654095]
[1756286483228,1.94086285,111060.0,111050.0,0.51654095]
[1756286484242,1.94086285,111060.0,111050.0,0.51754095]
[1756286484538,1.75347715,111060.0,111050.0,0.51754095]
[1756286484838,1.89016285,111060.0,111050.0,0.42749715]
[1756286485034,1.89016285,111060.0,111050.0,0.42649715]
[1756286485240,1.89016285,111060.0,111050.0,0.51654095]
[1756286485641,1.6273157,111060.0,111050.0,0.51654095]
[1756286485939,1.89016285,111060.0,111050.0,0.51654095]
[1756286486940,1.89016285,111060.0,111050.0,0.51854095]
[1756286487741,1.89016285,111060.0,111050.0,0.51754095]
[1756286488342,1.89016285,111060.0,111050.0,0.51654095]
[1756286489242,1.6273157,111060.0,111050.0,0.38968715]
[1756286489443,1.89016285,111060.0,111050.0,0.42649715]
[1756286490040,1.89016285,111060.0,111050.0,0.02804]
[1756286490239,1.89016285,111060.0,111050.0,0.29088715]
[1756286490440,1.89016285,111060.0,111050.0,0.33694715]
[1756286490844,1.89016285,111060.0,111050.0,0.47973095]
[1756286491451,1.89016285,111060.0,111050.0,0.51654095]
[1756286492446,1.6273157,111060.0,111050.0,0.51654095]
[1756286492652,1.89016285,111060.0,111050.0,0.51654095]
[1756286493051,1.6273157,111060.0,111050.0,0.51654095]
[1756286493251,1.89016285,111060.0,111050.0,0.51654095]
[1756286493455,1.89016285,111060.0,111050.0,0.44610095]
[1756286493853,1.6273157,111060.0,111050.0,0.1832538]
[1756286494057,1.89016285,111060.0,111050.0,0.44610095]
[1756286494357,1.89016285,111060.0,111050.0,0.35605715]
[1756286494548,1.89016285,111060.0,111050.0,0.42649715]
[1756286495150,1.89016285,111060.0,111050.0,0.35605715]
[1756286496152,1.89016285,111060.0,111050.0,0.38968715]
[1756286496348,1.89016285,111060.0,111050.0,0.42649715]
[1756286496546,1.89016285,111060.0,111050.0,0.38968715]
[1756286496951,1.89016285,111060.0,111050.0,0.16326]
[1756286497151,1.89016285,111060.0,111050.0,0.42610715]
[1756286497358,1.89016285,111060.0,111050.0,0.51615095]
[1756286500563,1.89016285,111060.0,111050.0,0.47973095]
[1756286500764,1.6273157,111060.0,111050.0,0.47973095]
[1756286500953,1.89016285,111060.0,111050.0,0.44610095]
[1756286501157,1.89016285,111060.0,111050.0,0.47787095]
[1756286501764,1.89016285,111060.0,111050.0,0.2150238]
[1756286501964,1.89016285,111060.0,111050.0,0.44610095]
[1756286502566,1.89016285,111060.0,111050.0,0.47787095]
[1756286502757,1.6273157,111060.0,111050.0,0.51429095]
[1756286502963,1.89016285,111060.0,111050.0,0.51429095]
[1756286503665,1.89016285,111060.0,111050.0,0.1614]
[1756286503861,1.89016285,111060.0,111050.0,0.09321]
[1756286504065,0.3397938,111050.0,111040.0,0.02866]
[1756286504365,0.2448019,111040.0,111030.0,0.27017012]
[1756286504568,0.24481,111030.0,111020.0,0.38122029]
[1756286504770,0.24481,111030.0,111020.0,0.73413554]
[1756286504962,0.24481,111030.0,111020.0,0.61229744]
[1756286505162,0.24481,111030.0,111020.0,0.70236554]
[1756286505467,0.24481,111030.0,111020.0,0.73413554]
[1756286505768,0.24281,111030.0,111020.0,0.73413554]
[1756286505966,0.29271,111030.0,111020.0,0.20844124]
[1756286506164,0.29271,111030.0,111020.0,0.76279554]
[1756286506360,0.55455715,111030.0,111020.0,0.80221554]
[1756286506671,0.55455715,111030.0,111020.0,0.27652124]
[1756286506865,0.55455715,111030.0,111020.0,0.80221554]
[1756286507068,0.55455715,111030.0,111020.0,0.80521554]
[1756286509565,0.55455715,111030.0,111020.0,0.71514744]
[1756286510071,0.55455715,111030.0,111020.0,0.80521554]
[1756286510766,0.29171,111030.0,111020.0,0.27952124]
[1756286510969,0.55455715,111030.0,111020.0,0.80521554]
[1756286511770,0.29171,111030.0,111020.0,0.80521554]
[1756286512273,0.29171,111030.0,111020.0,0.27952124]
[1756286512477,0.29171,111030.0,111020.0,0.80521554]
[1756286512677,1.12093,111030.0,111020.0,0.80521554]
[1756286512871,1.12061,111030.0,111020.0,0.80521554]
[1756286513072,1.12049,111030.0,111020.0,0.80521554]
[1756286514481,1.14499,111030.0,111020.0,0.27952124]
[1756286514678,1.14499,111030.0,111020.0,0.80521554]
[1756286516877,1.14499,111030.0,111020.0,0.71514744]
[1756286517084,1.14499,111030.0,111020.0,0.18945314]
[1756286517271,1.76863715,111030.0,111020.0,0.08315]
[1756286517476,1.76863715,111030.0,111020.0,0.34599715]
[1756286518181,1.76863715,111030.0,111020.0,0.39585715]
[1756286518682,1.76863715,111030.0,111020.0,0.13301]
[1756286518883,2.27823715,111030.0,111020.0,0.06048]
[1756286519082,1.06495715,111030.0,111020.0,0.06048]
[1756286519271,1.06495715,111030.0,111020.0,0.08315]
[1756286519272,2.00015715,111030.0,111020.0,0.08315]
[1756286519472,2.00015715,111030.0,111020.0,0.34599715]
[1756286519976,2.00015715,111030.0,111020.0,0.08315]
[1756286520176,1.73707,111030.0,111020.0,0.39585715]
[1756286520376,1.99991715,111030.0,111020.0,0.43227715]
[1756286520884,0.88551,111030.0,111020.0,0.43227715]
[1756286521085,1.99983715,111030.0,111020.0,0.43227715]
[1756286521274,0.88551,111030.0,111020.0,0.16943]
[1756286521584,1.73727,111030.0,111020.0,0.52015595]
[1756286522286,1.73727,111030.0,111020.0,0.16943]
[1756286522483,1.73727,111030.0,111020.0,0.52015595]
[1756286522884,1.73727,111030.0,111020.0,0.16943]
[1756286524888,1.73727,111030.0,111020.0,0.13301]
[1756286525288,1.73727,111030.0,111020.0,0.16943]
[1756286525489,1.73627,111030.0,111020.0,0.16943]
[1756286528091,0.88551,111030.0,111020.0,0.16943]
[1756286528287,1.73631,111030.0,111020.0,0.16943]
[1756286529592,1.73631,111030.0,111020.0,0.10198]
[1756286529788,1.23623595,111030.0,111020.0,0.17093]
[1756286529989,2.08703595,111030.0,111020.0,0.06078]
[1756286530189,2.08703595,111030.0,111020.0,0.13346]
[1756286530695,2.08703595,111030.0,111020.0,0.17024]
[1756286530897,1.73631,111030.0,111020.0,0.17024]
[1756286531392,0.88551,111030.0,111020.0,0.17024]
[1756286531593,1.73631,111030.0,111020.0,0.52096595]
[1756286535492,1.73631,111030.0,111020.0,0.61103425]
[1756286535493,0.86101,111030.0,111020.0,0.61103425]
[1756286535693,0.50021,111030.0,111020.0,0.86103425]
[1756286535887,1.15777,111030.0,111020.0,1.22183425]
[1756286536290,0.30697,111030.0,111020.0,1.22183425]
[1756286536496,1.00817,111030.0,111020.0,1.22183425]
[1756286536900,0.9841,111030.0,111020.0,1.22183425]
[1756286537497,1.1261202,111030.0,111020.0,1.22183425]
[1756286538497,1.1642702,111030.0,111020.0,1.22183425]
[1756286538697,1.2294702,111030.0,111020.0,0.97183425]
[1756286539002,1.2294702,111030.0,111020.0,0.6211083]
[1756286539298,1.2294702,111030.0,111020.0,0.97183425]
[1756286539499,1.2049702,111030.0,111020.0,0.97183425]
[1756286539891,1.1856402,111030.0,111020.0,0.97183425]
[1756286540089,1.01011,111030.0,111020.0,1.22183425]
[1756286540400,0.1333,111030.0,111020.0,1.22183425]
[1756286542300,0.1333,111030.0,111020.0,2.07255425]
[1756286547902,0.1333,111030.0,111020.0,2.07247425]
[1756286548307,0.1333,111030.0,111020.0,1.22183425]
[1756286548603,0.1333,111030.0,111020.0,2.07247425]
[1756286548794,0.17145,111030.0,111020.0,1.22183425]
[1756286548997,0.19736,111030.0,111020.0,2.07247425]
[1756286549299,0.26411,111030.0,111020.0,1.22183425]
[1756286549499,0.3786702,111030.0,111020.0,0.61103425]
[1756286549900,0.3541702,111030.0,111020.0,0.61103425]
[1756286550404,0.3541702,111030.0,111020.0,0.97183425]
[1756286550606,0.26411,111030.0,111020.0,0.97183425]
[1756286551212,0.26411,111030.0,111020.0,0.6211083]
[1756286551409,0.26411,111030.0,111020.0,0.97183425]
[1756286553709,0.3541702,111030.0,111020.0,0.97183425]
[1756286553913,0.3348402,111030.0,111020.0,0.97183425]
[1756286558510,0.3541702,111030.0,111020.0,0.97183425]
[1756286560007,0.2494102,111030.0,111020.0,0.97183425]
[1756286560207,0.3147702,111030.0,111020.0,0.97183425]
[1756286560414,0.3376702,111030.0,111020.0,0.97183425]
[1756286561315,0.1333,111030.0,111020.0,0.97183425]
[1756286562606,0.0983,111030.0,111020.0,1.22183425]
[1756286562813,3.02622,111060.0,111050.0,0.2538139]
[1756286563108,0.4049803,111060.0,111050.0,0.60453985]
[1756286563412,0.4049803,111060.0,111050.0,0.96533985]
[1756286563609,0.04899,111060.0,111050.0,0.96533985]
[1756286564102,0.08221,111060.0,111050.0,0.96533985]
[1756286564408,0.31572704,111070.0,111060.0,0.2538058]
[1756286564610,0.15862934,111070.0,111060.0,0.96533175]
[1756286564809,0.10963934,111070.0,111060.0,0.96533175]
[1756286565009,0.7688845,111080.0,111070.0,0.1561477]
[1756286565208,0.7688845,111080.0,111070.0,0.60452365]
[1756286566212,0.7708845,111080.0,111070.0,0.60452365]
[1756286566413,0.6212845,111080.0,111070.0,0.60452365]
[1756286567113,0.6212845,111080.0,111070.0,0.60421017]
[1756286567316,0.6222845,111080.0,111070.0,0.60421017]
[1756286568111,0.66085099,111080.0,111070.0,0.60421017]
[1756286569008,0.66085099,111080.0,111070.0,0.51449595]
[1756286569217,0.66085099,111080.0,111070.0,0.53436365]
[1756286569405,0.73410257,111080.0,111070.0,0.62439135]
[1756286569610,0.73410257,111080.0,111070.0,0.53436365]
[1756286570115,0.73410257,111080.0,111070.0,0.62439135]
[1756286572722,0.73410257,111080.0,111070.0,0.53436365]
[1756286572916,0.73410257,111080.0,111070.0,0.1506077]
[1756286573117,0.98410257,111080.0,111070.0,0.0198677]
[1756286573518,0.98410257,111080.0,111070.0,0.0920277]
[1756286573715,0.98410257,111080.0,111070.0,0.1836377]
[1756286574617,0.98410257,111080.0,111070.0,0.0920277]
[1756286574821,1.33482852,111080.0,111070.0,0.0198677]
[1756286575710,1.33482852,111080.0,111070.0,0.0730277]
[1756286575711,2.18502852,111080.0,111070.0,0.0730277]
[1756286576421,1.48442852,111080.0,111070.0,0.1506077]
[1756286576722,2.33458852,111080.0,111070.0,0.0920277]
[1756286576922,2.33458852,111080.0,111070.0,0.0198677]
[1756286579824,2.33454852,111080.0,111070.0,0.0198677]
[1756286581027,1.98382257,111080.0,111070.0,0.0730277]
[1756286581228,1.98378257,111080.0,111070.0,0.2379154]
[1756286581428,1.98378257,111080.0,111070.0,0.2048854]
[1756286581829,1.98378257,111080.0,111070.0,0.2379154]
[1756286582028,1.13370257,111080.0,111070.0,0.2379154]
[1756286582229,1.98374257,111080.0,111070.0,0.2736654]
[1756286582428,1.98374257,111080.0,111070.0,0.62439135]
[1756286584430,1.13370257,111080.0,111070.0,0.62439135]
[1756286584633,1.98374257,111080.0,111070.0,0.62439135]
[1756286585328,1.98370257,111080.0,111070.0,0.62439135]
[1756286585837,0.88370257,111080.0,111070.0,0.62439135]
[1756286586038,1.73370257,111080.0,111070.0,0.62439135]
[1756286589036,1.73370257,111080.0,111070.0,0.58864135]
[1756286590241,1.73362257,111080.0,111070.0,0.58864135]
[1756286590744,1.73362257,111080.0,111070.0,0.62794135]
[1756286593743,1.73362257,111080.0,111070.0,0.1148577]
[1756286593744,2.08434852,111080.0,111070.0,0.1148577]
[1756286593947,1.73362257,111080.0,111070.0,0.0198677]
[1756286594146,1.73362257,111080.0,111070.0,0.1641454]
[1756286595244,1.73362257,111080.0,111070.0,0.51487135]
[1756286596049,1.73362257,111080.0,111070.0,0.53465135]
[1756286596248,1.73362257,111080.0,111070.0,0.56766135]
[1756286596548,1.73362257,111080.0,111070.0,0.62989135]
[1756286597248,1.73362257,111080.0,111070.0,0.62926437]
[1756286598347,1.73338257,111080.0,111070.0,0.62926437]
[1756286599851,0.88370257,111080.0,111070.0,0.59625437]
[1756286600055,0.88370257,111080.0,111070.0,0.62926437]
[1756286600056,1.73338257,111080.0,111070.0,0.62926437]
[1756286601549,1.58378257,111080.0,111070.0,0.58996437]
[1756286602450,1.58378257,111080.0,111070.0,0.62926437]
[1756286605354,1.84656859,111080.0,111070.0,0.54132444]
[1756286605548,1.84656859,111080.0,111070.0,0.27853842]
[1756286605754,1.84656859,111080.0,111070.0,0.54132444]
[1756286607257,1.84656859,111080.0,111070.0,0.18329842]
[1756286607557,1.84656859,111080.0,111070.0,0.54132444]
[1756286608754,1.58378257,111080.0,111070.0,0.54132444]
[1756286608956,1.84656859,111080.0,111070.0,0.54132444]
[1756286610453,1.58378257,111080.0,111070.0,0.54132444]
[1756286610653,1.84656859,111080.0,111070.0,0.54132444]
[1756286610850,1.58378257,111080.0,111070.0,0.54132444]
[1756286611054,1.58278257,111080.0,111070.0,0.54132444]
[1756286611451,1.84556859,111080.0,111070.0,0.54132444]
[1756286611964,1.99516859,111080.0,111070.0,0.54132444]
[1756286612663,1.99416859,111080.0,111070.0,0.54132444]
[1756286612963,1.73138257,111080.0,111070.0,0.54132444]
[1756286613160,1.99316859,111080.0,111070.0,0.54132444]
[1756286613465,1.99316859,111080.0,111070.0,0.54232444]
[1756286614159,1.99316859,111080.0,111070.0,0.54132444]
[1756286614365,1.73038257,111080.0,111070.0,0.54232444]
[1756286614567,1.99316859,111080.0,111070.0,0.37998674]
[1756286614759,1.99316859,111080.0,111070.0,0.47001434]
[1756286614958,1.63236859,111080.0,111070.0,0.47001434]
[1756286615158,1.36906257,111080.0,111070.0,0.54232434]
[1756286615364,1.63184859,111080.0,111070.0,0.54232434]
[1756286615667,1.36906257,111080.0,111070.0,0.54232434]
[1756286617668,0.51990257,111080.0,111070.0,0.54232434]
[1756286617866,1.36902257,111080.0,111070.0,0.54232434]
[1756286618065,1.36902257,111080.0,111070.0,0.47001434]
[1756286618269,1.63180859,111080.0,111070.0,0.47001434]
[1756286618471,0.78268859,111080.0,111070.0,0.50476434]
[1756286618661,1.63172859,111080.0,111070.0,0.54418434]
[1756286619160,0.51990257,111080.0,111070.0,0.54318434]
[1756286619360,1.36994257,111080.0,111070.0,0.54318434]
[1756286620064,1.36894257,111080.0,111070.0,0.54318434]
[1756286620269,1.36894257,111080.0,111070.0,0.28139832]
[1756286620468,1.36894257,111080.0,111070.0,0.54418434]
[1756286621974,1.36894257,111080.0,111070.0,0.54318434]
[1756286622269,1.36894257,111080.0,111070.0,0.54418434]
[1756286622771,1.36894257,111080.0,111070.0,0.54318434]
[1756286622972,1.36894257,111080.0,111070.0,0.54418434]
[1756286624070,1.36894257,111080.0,111070.0,0.11026832]
[1756286624270,1.36894257,111080.0,111070.0,0.39883434]
[1756286624469,1.63172859,111080.0,111070.0,0.44709434]
[1756286625275,1.63172859,111080.0,111070.0,0.18330832]
[1756286625574,1.63172859,111080.0,111070.0,0.50397434]
[1756286626291,1.63272859,111080.0,111070.0,0.50397434]
[1756286626873,1.71608859,111080.0,111070.0,0.50397434]
[1756286627374,1.45330257,111080.0,111070.0,0.50397434]
[1756286627572,2.07688859,111080.0,111070.0,0.50397434]
[1756286628176,2.07688859,111080.0,111070.0,0.46922434]
[1756286628764,2.07688859,111080.0,111070.0,0.41743434]
[1756286628965,2.07688859,111080.0,111070.0,0.28202674]
[1756286631677,1.81410257,111080.0,111070.0,0.28202674]
[1756286631877,2.07688859,111080.0,111070.0,0.28202674]
[1756286635075,2.02488859,111080.0,111070.0,0.28202674]
[1756286635576,2.02488859,111080.0,111070.0,0.37205424]
[1756286636171,1.76210257,111080.0,111070.0,0.42649424]
[1756286636371,2.02488859,111080.0,111070.0,0.42649424]
[1756286636778,2.02488859,111080.0,111070.0,0.39783424]
[1756286636980,2.02488859,111080.0,111070.0,0.42649424]
[1756286638073,1.17584859,111080.0,111070.0,0.50864424]
[1756286638277,2.02424859,111080.0,111070.0,0.50864424]
[1756286638479,1.76146257,111080.0,111070.0,0.54339424]
[1756286638775,2.02424859,111080.0,111070.0,0.46922424]
[1756286640379,2.02424859,111080.0,111070.0,0.44609424]
[1756286641081,2.02424859,111080.0,111070.0,0.01924072]
[1756286641483,2.02424859,111080.0,111070.0,0.28202674]
[1756286642777,2.28703461,111080.0,111070.0,0.01924072]
[1756286642981,2.28703461,111080.0,111070.0,0.28202674]
[1756286643382,2.28703461,111080.0,111070.0,0.01924072]
[1756286645974,0.2561657,111060.0,111050.0,0.73475003]
[1756286646180,1.36707172,111060.0,111050.0,0.48941512]
[1756286646380,0.1534038,111050.0,111040.0,0.72400602]
[1756286646580,0.2532938,111050.0,111040.0,1.16654713]
[1756286647185,0.2512938,111050.0,111040.0,1.16654713]
[1756286647484,0.51307982,111050.0,111040.0,1.05575283]
[1756286647685,0.51307982,111050.0,111040.0,0.53018079]
[1756286647880,0.51307982,111050.0,111040.0,1.05575283]
[1756286648082,0.2502938,111050.0,111040.0,1.05875283]
[1756286648284,0.2502938,111050.0,111040.0,0.53318079]
[1756286648589,0.2502938,111050.0,111040.0,1.05875283]
[1756286648791,1.1817138,111050.0,111040.0,1.06075283]
[1756286649390,1.2316538,111050.0,111040.0,1.06075283]
[1756286650190,1.2316538,111050.0,111040.0,1.05775283]
[1756286650385,1.2316538,111050.0,111040.0,1.05575283]
[1756286652476,1.2315738,111050.0,111040.0,1.05575283]
[1756286652984,0.3835738,111050.0,111040.0,1.05575283]
[1756286653188,1.2315738,111050.0,111040.0,1.05575283]
[1756286654596,0.3835738,111050.0,111040.0,1.05575283]
[1756286654782,1.2315338,111050.0,111040.0,1.05575283]
[1756286654981,1.2315338,111050.0,111040.0,1.05675283]
[1756286655790,1.2315338,111050.0,111040.0,1.05775283]
[1756286656192,0.3835738,111050.0,111040.0,1.05775283]
[1756286656490,1.2315338,111050.0,111040.0,1.05775283]
[1756286658196,1.2315338,111050.0,111040.0,0.53218079]
[1756286658491,1.2315338,111050.0,111040.0,1.05775283]
[1756286658890,0.3835738,111050.0,111040.0,1.05775283]
[1756286659091,1.2313738,111050.0,111040.0,1.05775283]
[1756286660592,1.2313338,111050.0,111040.0,0.53218079]
[1756286660893,1.2313338,111050.0,111040.0,1.05775283]
[1756286665096,0.3835738,111050.0,111040.0,1.05775283]
[1756286665295,1.2311338,111050.0,111040.0,1.05775283]
[1756286665895,1.2311338,111050.0,111040.0,1.05675283]
[1756286666494,1.2311338,111050.0,111040.0,1.05575283]
[1756286666795,1.3807338,111050.0,111040.0,1.05575283]
[1756286667389,0.3835738,111050.0,111040.0,1.05575283]
[1756286667697,1.2310538,111050.0,111040.0,1.05575283]
[1756286668290,0.3835738,111050.0,111040.0,1.05575283]
[1756286668496,1.2310538,111050.0,111040.0,1.05575283]
[1756286675593,1.2310538,111050.0,111040.0,0.53018079]
[1756286675792,1.49383982,111050.0,111040.0,1.05575283]
[1756286676298,1.2310538,111050.0,111040.0,1.05575283]
[1756286676498,1.49383982,111050.0,111040.0,1.16832376]
[1756286676697,1.2310538,111050.0,111040.0,1.16832376]
[1756286677600,1.2310538,111050.0,111040.0,1.05575283]
[1756286677799,1.2310538,111050.0,111040.0,1.00925283]
[1756286680003,1.2310538,111050.0,111040.0,1.12182376]
[1756286680203,1.2310538,111050.0,111040.0,1.14223954]
[1756286681804,1.1476738,111050.0,111040.0,1.14223954]
[1756286681999,0.2990038,111050.0,111040.0,1.14223954]
[1756286682303,0.2374638,111050.0,111040.0,1.14223954]
[1756286682506,0.2695438,111050.0,111040.0,1.14223954]
[1756286682805,0.2972138,111050.0,111040.0,1.14223954]
[1756286683405,0.2972138,111050.0,111040.0,1.14323954]
[1756286683807,0.2972138,111050.0,111040.0,1.03066861]
[1756286685010,0.2972138,111050.0,111040.0,1.02966861]
[1756286685810,0.2972138,111050.0,111040.0,1.03066861]
[1756286686516,0.2972138,111050.0,111040.0,1.02966861]
[1756286686717,0.2972138,111050.0,111040.0,1.03066861]
[1756286687014,0.2972138,111050.0,111040.0,1.03166861]
[1756286687815,0.2972138,111050.0,111040.0,1.87830861]
[1756286688315,0.2972138,111050.0,111040.0,1.87822861]
[1756286690119,0.2972138,111050.0,111040.0,1.03166861]
[1756286690318,0.2972138,111050.0,111040.0,1.87818861]
[1756286693617,0.2323838,111050.0,111040.0,1.87818861]
[1756286694735,0.2979538,111050.0,111040.0,1.87818861]
[1756286695429,0.2979538,111050.0,111040.0,1.03166861]
[1756286695728,0.2979538,111050.0,111040.0,1.87782861]
[1756286696831,0.2979538,111050.0,111040.0,1.03066861]
[1756286697025,0.4475538,111050.0,111040.0,1.03066861]
[1756286697331,0.2979538,111050.0,111040.0,1.02966861]
[1756286697828,0.2979538,111050.0,111040.0,0.50409657]
[1756286698030,0.2979538,111050.0,111040.0,1.02966861]
[1756286699329,0.56073982,111050.0,111040.0,1.02966861]
[1756286699526,0.56073982,111050.0,111040.0,0.50409657]
[1756286699726,0.2979538,111050.0,111040.0,1.02966861]
[1756286701730,0.56073982,111050.0,111040.0,1.02966861]